bitfinex-derivatives/quotes_BTCF0:USTF0_20250426
["timestamp","ask_amount","ask_price","bid_price","bid_amount"]
[1745675228210,0.6735114,93994.0,93993.0,0.3807137]
[1745675228911,0.6745114,93994.0,93993.0,0.3807137]
[1745675229113,0.4618,93994.0,93993.0,0.3807137]
[1745675229510,0.101,93994.0,93993.0,0.3807137]
[1745675230220,0.101,93994.0,93993.0,0.4871057]
[1745675230610,0.101,93994.0,93993.0,0.5316057]
[1745675231318,0.0531707,94007.0,94001.0,0.2126956]
[1745675231507,0.6108,94002.0,94001.0,0.2126956]
[1745675232113,0.6108,94002.0,94001.0,0.3190756]
[1745675232310,0.6108,94002.0,94001.0,0.4900756]
[1745675232311,0.6118,94002.0,94001.0,0.4900756]
[1745675232514,0.6118,94002.0,94001.0,1.2719856]
[1745675232717,0.6258235,94021.0,94020.0,0.2126526]
[1745675232911,0.4358235,94021.0,94020.0,0.2126526]
[1745675233107,0.26,94040.0,94020.0,0.3190126]
[1745675233415,0.2552,94038.0,94037.0,0.2126141]
[1745675233607,1e-08,94038.0,94037.0,0.8314141]
[1745675233811,1e-08,94038.0,94037.0,1.18775409]
[1745675234014,0.28,94057.0,94056.0,0.2125712]
[1745675234211,0.25,94057.0,94056.0,0.5733712]
[1745675234514,0.042,94074.0,94067.0,0.2125463]
[1745675234718,0.1052,94068.0,94067.0,0.5733463]
[1745675234916,0.0841,94082.0,94076.0,0.212526]
[1745675235111,0.32731892,94077.0,94076.0,0.573326]
[1745675235315,0.32731892,94077.0,94076.0,0.67962199]
[1745675235711,0.0013,94091.0,94090.0,0.2124944]
[1745675236018,0.1013,94091.0,94090.0,0.5732944]
[1745675236217,0.1013,94091.0,94090.0,0.7412944]
[1745675236821,0.1013,94091.0,94090.0,0.8267944]
[1745675238415,0.1023,94091.0,94090.0,0.8267944]
[1745675240224,0.03674041,94091.0,94090.0,0.8267944]
[1745675240421,1e-08,94091.0,94090.0,0.9330744]
[1745675240622,0.04134321,94091.0,94090.0,0.9330744]
[1745675240819,0.0052,94098.0,94097.0,0.2124786]
[1745675241119,0.2652,94098.0,94097.0,0.7412786]
[1745675241712,0.2652,94098.0,94097.0,0.7844786]
[1745675241914,0.2652,94098.0,94097.0,0.572]
[1745675242220,0.2692,94098.0,94097.0,0.5742786]
[1745675242813,0.3584,94098.0,94097.0,0.5742786]
[1745675243920,0.3584,94098.0,94097.0,0.3618]
[1745675244126,0.3584,94098.0,94097.0,0.5742786]
[1745675244516,0.3584,94098.0,94097.0,0.3618]
[1745675244721,0.3584,94098.0,94097.0,0.5742786]
[1745675245718,0.230562,94098.0,94097.0,0.6805506]
[1745675245921,0.168235,94098.0,94097.0,1.8227106]
[1745675246116,0.3608,94143.0,94120.0,0.2124266]
[1745675246431,0.2713,94121.0,94120.0,0.2124266]
[1745675247615,0.2345216,94121.0,94120.0,0.3186746]
[1745675247818,0.2066432,94121.0,94120.0,0.4033746]
[1745675248221,0.2126432,94121.0,94120.0,0.5723746]
[1745675248621,0.2066432,94121.0,94120.0,0.5713746]
[1745675248826,0.0849,94139.0,94127.0,0.2124108]
[1745675249130,0.2274535,94128.0,94127.0,0.5732108]
[1745675249431,0.0432,94148.0,94127.0,1.25823]
[1745675249723,0.2,94148.0,94147.0,0.2123657]
[1745675250126,0.2,94148.0,94147.0,0.2977657]
[1745675250324,0.2,94148.0,94147.0,0.0439]
[1745675250524,0.2123763,94143.0,94136.0,0.3608]
[1745675250723,0.0432,94142.0,94138.0,0.0530965]
[1745675250923,0.3567,94142.0,94141.0,0.2123793]
[1745675252132,0.3587,94142.0,94141.0,0.3803793]
[1745675252324,0.571077,94142.0,94141.0,0.3803793]
[1745675253131,0.3587,94142.0,94141.0,0.3803793]
[1745675254234,0.3155,94142.0,94141.0,0.3803793]
[1745675254533,0.272,94142.0,94141.0,0.3803793]
[1745675255034,0.272,94142.0,94141.0,0.5316033]
[1745675256138,0.1460843,94142.0,94141.0,1.3127233]
[1745675256331,0.0013,94151.0,94150.0,0.2123589]
[1745675256531,0.2513,94151.0,94150.0,0.5731589]
[1745675256741,0.25,94151.0,94150.0,0.9293709]
[1745675257035,0.25,94151.0,94150.0,1.4704309]
[1745675257036,0.08521,94151.0,94150.0,1.4704309]
[1745675257238,0.0107126,94151.0,94150.0,1.1975709]
[1745675257430,0.0438,94169.0,94150.0,1.1975709]
[1745675257431,0.0438,94169.0,94157.0,0.2123432]
[1745675257635,0.2952,94158.0,94157.0,0.6793472]
[1745675258340,0.2952,94158.0,94157.0,0.9337472]
[1745675259736,0.5105409,94158.0,94157.0,0.7411432]
[1745675260034,0.5105409,94158.0,94157.0,0.5288]
[1745675260035,0.2982,94158.0,94157.0,0.5288]
[1745675260239,0.5105409,94158.0,94157.0,0.5288]
[1745675260433,0.5105409,94158.0,94157.0,0.7411432]
[1745675260634,0.5974409,94158.0,94157.0,0.7411432]
[1745675261235,0.5974409,94158.0,94157.0,0.3608]
[1745675261436,0.5974409,94158.0,94148.0,0.2654459]
[1745675261437,0.2123612,94149.0,94148.0,0.2654459]
[1745675261740,0.212377,94143.0,94141.0,0.2654618]
[1745675261940,0.256777,94142.0,94141.0,0.2654618]
[1745675262244,0.591777,94142.0,94141.0,0.2654618]
[1745675262943,0.29,94142.0,94141.0,0.3716858]
[1745675263140,0.1467238,94142.0,94141.0,1.4076058]
[1745675263330,0.3608,94179.0,94157.0,0.2123432]
[1745675263634,0.1852,94158.0,94157.0,0.9339432]
[1745675263840,0.1852,94158.0,94157.0,1.0401472]
[1745675264237,0.1852,94158.0,94157.0,1.2955472]
[1745675264640,0.1852,94158.0,94157.0,1.1893432]
[1745675265045,0.1882,94158.0,94157.0,1.1893432]
[1745675266445,0.1882,94158.0,94157.0,1.2955472]
[1745675266641,0.1350965,94158.0,94157.0,1.2955472]
[1745675266846,0.0911347,94158.0,94157.0,1.3055472]
[1745675271135,0.0433,94163.0,94162.0,0.2123319]
[1745675271340,0.3033,94163.0,94162.0,0.2123319]
[1745675272135,0.3033,94163.0,94162.0,0.3803319]
[1745675272643,0.3083,94163.0,94162.0,0.3803319]
[1745675273151,0.17281269,94163.0,94162.0,0.3803319]
[1745675274447,0.16781269,94163.0,94162.0,0.3803319]
[1745675274648,0.16981269,94163.0,94162.0,0.3803319]
[1745675274949,0.16981269,94163.0,94162.0,0.4865319]
[1745675275750,0.16981269,94163.0,94162.0,0.3803319]
[1745675276953,0.26161269,94163.0,94162.0,0.3803319]
[1745675277249,0.26161269,94163.0,94162.0,0.2123319]
[1745675277950,0.0530835,94162.0,94157.0,0.7216]
[1745675278148,0.2123409,94158.0,94157.0,0.7216]
[1745675278348,0.2123409,94158.0,94157.0,0.9339432]
[1745675278349,0.4623409,94158.0,94157.0,0.9339432]
[1745675279640,0.4633409,94158.0,94157.0,0.9339432]
[1745675280447,0.4633409,94158.0,94157.0,0.7216]
[1745675280748,0.2123499,94154.0,94153.0,0.1613471]
[1745675280946,0.4923499,94154.0,94153.0,0.1613471]
[1745675281154,0.6603499,94154.0,94153.0,0.3736993]
[1745675281654,0.6603499,94154.0,94153.0,0.2123522]
[1745675282957,0.6603499,94154.0,94153.0,0.5731522]
[1745675282958,0.448,94154.0,94153.0,0.5731522]
[1745675283149,0.28,94154.0,94153.0,0.7411522]
[1745675284149,0.28,94154.0,94153.0,0.5731522]
[1745675286349,0.28,94154.0,94153.0,0.7411522]
[1745675288154,0.28,94154.0,94153.0,0.7511522]
[1745675289061,0.28,94154.0,94153.0,0.8573602]
[1745675294262,0.1804348,94154.0,94153.0,1.6384102]
[1745675294466,0.0459,94179.0,94178.0,0.2122958]
[1745675294658,0.2859,94179.0,94178.0,0.5730958]
[1745675294961,0.2859,94179.0,94178.0,0.6792758]
[1745675295162,0.2859,94179.0,94178.0,0.68723544]
[1745675295353,0.2859,94179.0,94178.0,0.69723544]
[1745675295354,0.1957262,94179.0,94178.0,0.69723544]
[1745675296155,0.1957262,94179.0,94178.0,0.86523544]
[1745675296760,0.2849262,94179.0,94178.0,0.86523544]
[1745675296962,0.2889262,94179.0,94178.0,0.7510958]
[1745675297258,0.2889262,94179.0,94178.0,0.5830958]
[1745675297856,0.2889262,94179.0,94178.0,0.5730958]
[1745675298058,0.2849262,94179.0,94178.0,0.5730958]
[1745675298262,0.4529262,94179.0,94178.0,0.5730958]
[1745675298463,0.6652198,94179.0,94178.0,0.5730958]
[1745675299759,0.6652198,94179.0,94178.0,0.3608]
[1745675301166,0.2123477,94157.0,94156.0,0.2123439]
[1745675301364,0.2123387,94162.0,94161.0,0.2123319]
[1745675301569,0.24,94162.0,94161.0,0.2123319]
[1745675301758,0.24,94162.0,94161.0,0.3055319]
[1745675303660,0.24,94162.0,94161.0,0.3085319]
[1745675305665,0.24,94162.0,94161.0,0.4547319]
[1745675305868,0.24,94162.0,94161.0,0.5010319]
[1745675306263,0.24,94162.0,94161.0,0.6690319]
[1745675307968,0.0469,94177.0,94176.0,0.2123003]
[1745675308169,0.1669,94177.0,94176.0,0.2123003]
[1745675308570,0.1669,94177.0,94176.0,0.3046003]
[1745675310178,0.1669,94177.0,94176.0,0.2123003]
[1745675310968,0.3791981,94177.0,94176.0,0.2123003]
[1745675311773,0.1669,94177.0,94176.0,0.2123003]
[1745675311979,0.3791981,94177.0,94176.0,0.2123003]
[1745675312271,0.1669,94177.0,94176.0,0.2123003]
[1745675312475,0.3791981,94177.0,94176.0,0.2123003]
[1745675313479,0.1669,94177.0,94160.0,0.053084]
[1745675313674,0.2654019,94169.0,94168.0,0.2123161]
[1745675313874,0.5354019,94169.0,94168.0,0.2123161]
[1745675314176,0.3625,94169.0,94147.0,0.3608]
[1745675314368,0.2123635,94148.0,94147.0,0.3608]
[1745675314566,0.2123635,94148.0,94132.0,0.4085]
[1745675314567,0.24,94148.0,94132.0,0.3608]
[1745675314767,0.2123905,94136.0,94135.0,0.2139861]
[1745675314980,0.4723905,94136.0,94135.0,0.2139861]
[1745675315782,0.5645905,94136.0,94135.0,0.2139861]
[1745675317373,0.5645905,94136.0,94135.0,0.2199861]
[1745675329482,0.2124086,94128.0,94127.0,0.00531194]
[1745675329785,0.8532086,94128.0,94127.0,0.00531194]
[1745675330084,1.0212086,94128.0,94127.0,0.00531194]
[1745675330484,1.1155086,94128.0,94127.0,0.00531194]
[1745675330880,1.1155086,94128.0,94127.0,0.01131194]
[1745675331492,1.1155086,94128.0,94127.0,0.22372274]
[1745675332287,0.9475086,94128.0,94127.0,0.22372274]
[1745675332883,0.9475086,94128.0,94127.0,0.22172274]
[1745675333188,1.1155086,94128.0,94127.0,0.22172274]
[1745675333579,1.1155086,94128.0,94127.0,0.21972274]
[1745675339689,1.1155086,94128.0,94127.0,0.00731194]
[1745675340802,1.1155086,94128.0,94127.0,0.21972274]
[1745675343190,0.9475086,94128.0,94127.0,0.21972274]
[1745675343699,0.9475086,94128.0,94127.0,0.00731194]
[1745675343889,0.2655805,94106.0,94105.0,0.212453]
[1745675344091,0.588696,94106.0,94105.0,0.212453]
[1745675344292,0.588696,94106.0,94103.0,0.1456161]
[1745675344293,0.2124628,94104.0,94103.0,0.0925]
[1745675344601,0.2124628,94104.0,94100.0,0.00106269]
[1745675344602,0.2124673,94102.0,94100.0,0.00106269]
[1745675344895,0.2607695,94101.0,94100.0,0.21353449]
[1745675345096,0.5661695,94101.0,94100.0,0.21353449]
[1745675346693,0.5661695,94101.0,94100.0,0.21653449]
[1745675348294,0.3054,94101.0,94100.0,0.21653449]
[1745675348495,0.5178695,94101.0,94100.0,0.21653449]
[1745675348890,0.5178695,94101.0,94100.0,0.00406269]
[1745675349396,0.5178695,94101.0,94100.0,0.21653449]
[1745675350297,0.411668,94101.0,94084.0,0.0471]
[1745675350494,0.3187507,94092.0,94091.0,0.2124876]
[1745675350694,0.5787507,94092.0,94091.0,0.2124876]
[1745675351293,0.6759507,94092.0,94091.0,0.2124876]
[1745675352203,0.6769507,94092.0,94091.0,0.2164876]
[1745675352905,0.623826,94092.0,94091.0,0.2164876]
[1745675353805,0.261,94092.0,94091.0,0.2164876]
[1745675354005,0.4734899,94092.0,94091.0,0.2164876]
[1745675357409,0.261,94092.0,94091.0,0.2164876]
[1745675357806,0.261,94092.0,94091.0,1.1141676]
[1745675358007,0.261,94092.0,94091.0,0.5827676]
[1745675358206,0.261,94092.0,94091.0,0.7507676]
[1745675358409,0.261,94092.0,94091.0,0.5007676]
[1745675358713,0.3608,94113.0,94112.0,0.2124447]
[1745675358902,0.8532439,94113.0,94112.0,0.2124447]
[1745675359106,0.8532439,94113.0,94112.0,0.3804447]
[1745675359807,0.8542439,94113.0,94112.0,0.3804447]
[1745675360205,0.8542439,94113.0,94112.0,0.3904447]
[1745675360611,0.6418,94113.0,94112.0,0.3904447]
[1745675361309,0.6418,94113.0,94112.0,0.3804447]
[1745675362311,0.8542424,94113.0,94112.0,0.3804447]
[1745675363807,0.4934424,94113.0,94112.0,0.3804447]
[1745675365203,0.4934424,94113.0,94112.0,0.4900447]
[1745675367107,0.281,94113.0,94112.0,0.4900447]
[1745675367310,0.281,94113.0,94112.0,0.8508447]
[1745675367610,0.281,94113.0,94112.0,0.8608447]
[1745675368416,0.281,94113.0,94112.0,0.96710069]
[1745675369619,0.281,94113.0,94112.0,1.49838069]
[1745675370121,0.281,94113.0,94112.0,0.96710069]
[1745675370910,0.281,94113.0,94112.0,1.74838069]
[1745675371320,0.28,94113.0,94112.0,1.74838069]
[1745675371520,0.28,94113.0,94112.0,1.75038069]
[1745675372016,0.2491098,94113.0,94112.0,1.75038069]
[1745675372315,0.2491098,94113.0,94112.0,1.91058069]
[1745675373212,0.2491098,94113.0,94112.0,1.37930069]
[1745675377024,0.2491098,94113.0,94112.0,1.2730447]
[1745675377224,0.2491098,94113.0,94112.0,1.37930069]
[1745675378923,0.2491098,94113.0,94112.0,1.38030069]
[1745675379123,0.2108854,94113.0,94112.0,1.55670069]
[1745675379426,0.0052,94128.0,94127.0,0.2124108]
[1745675379722,0.1443386,94128.0,94127.0,0.6232108]
[1745675380024,0.39,94147.0,94146.0,0.212368]
[1745675380220,0.0511,94150.0,94149.0,0.2123612]
[1745675380426,0.2911,94150.0,94149.0,0.2123612]
[1745675380610,0.3472,94150.0,94149.0,0.2123612]
[1745675381320,0.3472,94150.0,94149.0,0.3803612]
[1745675381512,0.3472,94150.0,94149.0,0.38831999]
[1745675381718,0.3472,94150.0,94149.0,0.3803612]
[1745675382126,0.3472,94150.0,94149.0,0.2123612]
[1745675382325,0.3502,94150.0,94149.0,0.2123612]
[1745675382726,0.5625589,94150.0,94149.0,0.2123612]
[1745675383218,0.5625589,94150.0,94149.0,0.3803612]
[1745675383520,0.3502,94150.0,94149.0,0.3803612]
[1745675384021,0.5625589,94150.0,94149.0,0.3803612]
[1745675384423,0.3502,94150.0,94149.0,0.3803612]
[1745675384623,0.3502,94150.0,94149.0,0.38840548]
[1745675391129,0.3502,94150.0,94149.0,0.39840548]
[1745675391635,0.3502,94150.0,94149.0,0.38840548]
[1745675391822,0.3502,94150.0,94149.0,0.3803612]
[1745675392734,0.5625589,94150.0,94149.0,0.168]
[1745675393032,0.5625589,94150.0,94149.0,0.3803612]
[1745675393626,0.5625589,94150.0,94149.0,0.168]
[1745675393930,0.2654818,94140.0,94139.0,0.2123838]
[1745675394122,0.8862818,94140.0,94139.0,0.2123838]
[1745675394823,0.9984818,94140.0,94139.0,0.2123838]
[1745675395223,0.945386,94140.0,94139.0,0.3803838]
[1745675395424,0.584586,94140.0,94139.0,0.3803838]
[1745675397227,0.3722,94140.0,94139.0,0.3803838]
[1745675400626,0.3722,94140.0,94139.0,0.4390838]
[1745675401339,0.26,94140.0,94139.0,0.4490838]
[1745675403426,0.26,94140.0,94139.0,0.5553078]
[1745675408041,0.26,94140.0,94139.0,0.4490838]
[1745675409127,0.26,94140.0,94139.0,0.5076838]
[1745675417742,0.26,94140.0,94139.0,0.8684838]
[1745675421538,0.26,94140.0,94139.0,0.3903838]
[1745675422147,0.26,94140.0,94139.0,0.2223838]
[1745675424042,0.26,94140.0,94139.0,0.3435838]
[1745675425141,0.26,94140.0,94139.0,0.5115838]
[1745675429151,0.26,94140.0,94139.0,0.3903838]
[1745675433253,0.4438,94140.0,94139.0,0.3803838]
[1745675433750,1.01240551,94140.0,94139.0,0.168]
[1745675433946,1.01240551,94140.0,94139.0,0.3803838]
[1745675434147,1.01240551,94140.0,94139.0,0.2123838]
[1745675434847,0.76240551,94140.0,94139.0,0.2123838]
[1745675435046,0.55002401,94140.0,94139.0,0.2123838]
[1745675435952,0.76240551,94140.0,94139.0,0.2123838]
[1745675436148,0.55002401,94140.0,94139.0,0.2123838]
[1745675437550,0.6561815,94140.0,94139.0,0.2123838]
[1745675439156,0.4438,94140.0,94139.0,0.2123838]
[1745675440242,0.6561815,94140.0,94139.0,0.2123838]
[1745675442949,0.4438,94140.0,94139.0,0.2123838]
[1745675443558,0.6561815,94140.0,94139.0,0.2123838]
[1745675456162,0.6561815,94140.0,94139.0,0.3803838]
[1745675457160,0.6561815,94140.0,94139.0,0.2123838]
[1745675459558,0.2123883,94138.0,94136.0,0.0642]
[1745675459764,0.2123973,94133.0,94132.0,0.2654889]
[1745675459967,0.4723973,94133.0,94132.0,0.2654889]
[1745675461060,0.4733973,94133.0,94132.0,0.2654889]
[1745675463057,0.4733973,94133.0,94126.0,0.0643]
[1745675463058,0.261,94133.0,94126.0,0.0643]
[1745675463262,0.2655106,94131.0,94130.0,0.2123996]
[1745675463462,0.5255106,94131.0,94130.0,0.2123996]
[1745675464060,0.5786126,94131.0,94130.0,0.2123996]
[1745675464652,0.0531046,94124.0,94111.0,0.00159374]
[1745675464862,0.5732447,94112.0,94111.0,0.00159374]
[1745675465162,0.8232447,94112.0,94111.0,0.00159374]
[1745675466357,0.2655946,94100.0,94099.0,0.2124728]
[1745675466562,0.2124763,94098.0,94097.0,0.00531364]
[1745675466752,0.4924763,94098.0,94097.0,0.00531364]
[1745675468061,0.5997483,94098.0,94088.0,0.1273]
[1745675468262,0.2124966,94089.0,94088.0,0.0651]
[1745675468461,0.4924966,94089.0,94088.0,0.0651]
[1745675469852,0.4924966,94089.0,94088.0,0.2775989]
[1745675470257,0.4934966,94089.0,94088.0,0.2795989]
[1745675473354,0.4934966,94089.0,94088.0,0.0671]
[1745675473561,0.2125079,94084.0,94083.0,0.00159421]
[1745675473783,0.4725079,94084.0,94083.0,0.00159421]
[1745675473955,0.8333079,94084.0,94083.0,0.00159421]
[1745675474862,0.0531307,94078.0,94071.0,0.12306198]
[1745675475069,0.5733328,94073.0,94072.0,0.1296]
[1745675475270,0.8433328,94073.0,94072.0,0.1296]
[1745675475567,0.2125373,94071.0,94050.0,0.0531461]
[1745675475768,0.4925373,94071.0,94066.0,0.2125481]
[1745675475969,0.4925373,94071.0,94061.0,0.2125585]
[1745675476268,0.2125441,94068.0,94059.0,0.0641]
[1745675476465,0.4525441,94068.0,94063.0,0.2125544]
[1745675476769,0.4525441,94068.0,94064.0,0.2125527]
[1745675477067,0.4525441,94068.0,94067.0,0.21786163]
[1745675477363,0.4525441,94068.0,94067.0,0.00531533]
[1745675477569,0.4525441,94068.0,94067.0,0.21786163]
[1745675477864,0.24,94068.0,94067.0,0.21786163]
[1745675478266,0.24,94068.0,94067.0,0.38586163]
[1745675478464,0.4525441,94068.0,94067.0,0.51126163]
[1745675479266,0.4535441,94068.0,94067.0,0.51526163]
[1745675479968,0.4535441,94068.0,94067.0,0.51326163]
[1745675483370,0.241,94068.0,94067.0,0.51326163]
[1745675483664,0.241,94068.0,94067.0,0.89406163]
[1745675483665,0.05702959,94068.0,94067.0,0.89406163]
[1745675483858,1e-07,94068.0,94067.0,1.78189963]
[1745675484066,0.17,94087.0,94067.0,3.06935333]
[1745675484367,0.1021926,94087.0,94086.0,0.6264291]
[1745675484563,0.26,94106.0,94105.0,0.2124605]
[1745675484774,0.3713855,94120.0,94119.0,0.2124289]
[1745675485065,0.25,94120.0,94119.0,0.2124289]
[1745675485869,0.25,94120.0,94119.0,0.3412289]
[1745675486271,0.4624266,94120.0,94119.0,0.5092289]
[1745675486471,0.4684266,94120.0,94119.0,0.5102289]
[1745675487564,0.256,94120.0,94119.0,0.5102289]
[1745675488063,0.5281266,94120.0,94119.0,0.169]
[1745675488263,0.6495266,94120.0,94119.0,0.2134289]
[1745675489064,0.6495266,94120.0,94119.0,0.001]
[1745675489257,0.8175266,94120.0,94119.0,0.001]
[1745675490171,0.6495266,94120.0,94119.0,0.001]
[1745675491369,0.0531092,94116.0,94094.0,0.0531211]
[1745675491567,0.2124808,94098.0,94097.0,0.2655978]
[1745675491766,0.4524808,94098.0,94097.0,0.2655978]
[1745675492566,0.5772808,94098.0,94097.0,0.2655978]
[1745675493168,0.7452808,94098.0,94097.0,0.2655978]
[1745675493368,0.7472808,94098.0,94097.0,0.2655978]
[1745675494868,0.7472808,94098.0,94085.0,0.0531261]
[1745675494869,0.5348,94098.0,94085.0,0.0531261]
[1745675495067,0.0531247,94088.0,94061.0,0.4102]
[1745675495374,0.2125395,94070.0,94069.0,0.2125413]
[1745675495580,0.4925395,94070.0,94069.0,0.2125413]
[1745675495878,0.4925395,94070.0,94069.0,0.3365413]
[1745675499881,0.4925395,94070.0,94069.0,0.124]
[1745675500083,0.4925395,94070.0,94069.0,0.3365418]
[1745675500674,0.4925395,94070.0,94069.0,0.124]
[1745675500875,0.2125441,94068.0,94067.0,0.00531533]
[1745675501181,0.4725441,94068.0,94067.0,0.17331533]
[1745675501568,0.9578441,94068.0,94067.0,0.168]
[1745675501769,0.9578441,94068.0,94055.0,0.1287]
[1745675501770,0.2125712,94056.0,94055.0,0.1287]
[1745675501977,0.212578,94053.0,94041.0,0.2126042]
[1745675502173,0.212596,94045.0,94044.0,0.0654]
[1745675502574,0.462596,94045.0,94044.0,0.0654]
[1745675502879,0.462596,94045.0,94044.0,0.2779983]
[1745675503086,0.527796,94045.0,94044.0,0.2779983]
[1745675503474,0.528796,94045.0,94044.0,0.2819983]
[1745675503979,0.527796,94045.0,94044.0,0.2779983]
[1745675504187,0.528796,94045.0,94044.0,0.2809983]
[1745675505486,0.528796,94045.0,94044.0,0.0684]
[1745675505787,0.528796,94045.0,94044.0,0.2155983]
[1745675506388,0.528796,94045.0,94044.0,0.003]
[1745675508084,0.528796,94045.0,94044.0,0.2155983]
[1745675508283,0.528796,94045.0,94044.0,0.003]
[1745675509679,0.2125983,94044.0,94043.0,0.2126005]
[1745675509885,0.5362983,94044.0,94043.0,0.2126005]
[1745675510082,0.5971983,94044.0,94043.0,0.2126005]
[1745675510281,0.2126051,94042.0,94041.0,0.2126044]
[1745675510481,0.4726051,94042.0,94041.0,0.2126044]
[1745675510792,0.5972051,94042.0,94041.0,0.2126044]
[1745675512286,0.5982051,94042.0,94041.0,0.2156044]
[1745675512988,0.5982051,94042.0,94041.0,0.003]
[1745675514785,0.5982051,94042.0,94041.0,0.2156051]
[1745675515090,0.5982051,94042.0,94041.0,0.3403051]
[1745675516587,0.5982051,94042.0,94041.0,0.2156051]
[1745675516789,0.5982051,94042.0,94041.0,0.003]
[1745675517091,0.2126413,94025.0,94024.0,0.1138604]
[1745675517295,0.4626413,94025.0,94024.0,0.1788604]
[1745675517686,0.4626413,94025.0,94024.0,0.3383372]
[1745675518596,0.74,94025.0,94021.0,0.00159521]
[1745675518800,0.2126481,94022.0,94021.0,0.00159521]
[1745675518985,0.5016481,94022.0,94021.0,0.21424551]
[1745675519583,0.5016481,94022.0,94021.0,0.21524551]
[1745675520192,0.5026481,94022.0,94021.0,0.21524551]
[1745675520388,0.5026481,94022.0,94021.0,0.00259521]
[1745675520594,0.5131649,94022.0,94021.0,0.00259521]
[1745675521197,0.6811649,94022.0,94021.0,0.00259521]
[1745675521400,0.6811649,94022.0,94012.0,0.4139676]
[1745675521401,0.2126684,94013.0,94012.0,0.3608]
[1745675521895,0.5026684,94013.0,94012.0,0.5734707]
[1745675522087,0.29,94013.0,94012.0,0.5734707]
[1745675522496,0.29,94013.0,94012.0,0.93983869]
[1745675522794,0.29,94013.0,94012.0,1.47167869]
[1745675522989,0.29,94013.0,94012.0,3.09857869]
[1745675522990,0.10052006,94013.0,94012.0,3.09857869]
[1745675523189,0.10152006,94013.0,94012.0,3.26657869]
[1745675524899,0.10152006,94013.0,94012.0,3.01657869]
[1745675525090,0.10152006,94013.0,94012.0,2.48473869]
[1745675533096,0.03731146,94013.0,94012.0,2.48473869]
[1745675533303,0.0979465,94013.0,94012.0,3.01657869]
[1745675533599,0.11,94032.0,94031.0,0.2126277]
[1745675533815,0.0653,94038.0,94037.0,0.2126141]
[1745675534003,0.3153,94038.0,94037.0,0.2126141]
[1745675534297,0.3153,94038.0,94037.0,0.3906141]
[1745675534790,0.3153,94038.0,94037.0,0.5140141]
[1745675535392,0.3213,94038.0,94037.0,0.5140141]
[1745675536304,0.5339119,94038.0,94037.0,0.5040141]
[1745675536696,0.9561119,94038.0,94037.0,0.168]
[1745675537103,0.2126413,94025.0,94024.0,0.2658012]
[1745675537294,0.4526413,94025.0,94024.0,0.2658012]
[1745675537896,0.5748413,94025.0,94024.0,0.2658012]
[1745675538109,0.5748413,94025.0,94024.0,0.4338012]
[1745675538595,0.9386413,94025.0,94024.0,0.4338012]
[1745675539409,0.726,94025.0,94024.0,0.4338012]
[1745675539998,0.3652,94025.0,94024.0,0.4338012]
[1745675540303,0.3038,94025.0,94024.0,0.4338012]
[1745675540907,0.243,94025.0,94024.0,0.4438012]
[1745675541105,0.2125933,94025.0,94024.0,0.5501572]
[1745675543006,0.2125933,94025.0,94024.0,2.0501572]
[1745675545102,0.2125933,94025.0,94024.0,2.1811572]
[1745675546307,0.1702043,94025.0,94024.0,2.1811572]
[1745675546705,0.1053109,94025.0,94024.0,2.5913572]
[1745675547017,0.0674,94043.0,94042.0,0.2126028]
[1745675547311,0.3174,94043.0,94042.0,0.2226028]
[1745675547714,0.3174,94043.0,94042.0,0.3505028]
[1745675548211,0.3174,94043.0,94042.0,0.5185028]
[1745675548914,0.256,94043.0,94042.0,0.5185028]
[1745675549913,0.25,94043.0,94042.0,0.5185028]
[1745675550214,0.254,94043.0,94042.0,0.5195028]
[1745675557701,0.254,94043.0,94042.0,0.8803028]
[1745675559100,0.254,94043.0,94042.0,1.0567028]
[1745675559413,0.254,94043.0,94042.0,0.8803028]
[1745675563411,0.254,94043.0,94042.0,0.8170028]
[1745675567524,0.0631,94057.0,94042.0,0.8170028]
[1745675567525,0.3608,94079.0,94054.0,0.0531435]
[1745675567823,0.2752,94068.0,94067.0,0.2125463]
[1745675568015,0.2752,94068.0,94067.0,0.2525463]
[1745675568208,0.2752,94068.0,94067.0,0.4205463]
[1745675568608,0.2812,94068.0,94067.0,0.5448463]
[1745675569216,0.2822,94068.0,94067.0,0.5448463]
[1745675569717,0.2822,94068.0,94067.0,0.55281406]
[1745675571333,0.2822,94068.0,94067.0,0.38481406]
[1745675571509,0.2822,94068.0,94067.0,0.32271406]
[1745675572126,0.2822,94068.0,94067.0,0.49071406]
[1745675574219,0.2822,94068.0,94067.0,0.66711406]
[1745675575119,0.2822,94068.0,94067.0,1.02791406]
[1745675577126,0.2822,94068.0,94067.0,0.78931406]
[1745675577425,0.7447441,94068.0,94067.0,0.2125463]
[1745675577618,0.4947441,94068.0,94067.0,0.2125463]
[1745675577818,0.2822,94068.0,94067.0,0.2125463]
[1745675578840,0.4947441,94068.0,94067.0,0.2125463]
[1745675580833,0.2125576,94062.0,94061.0,0.0080453]
[1745675581023,0.4825576,94062.0,94061.0,0.2206052]
[1745675581221,0.4825576,94062.0,94061.0,0.2125599]
[1745675581628,0.6138576,94062.0,94061.0,0.2125599]
[1745675582217,0.7818576,94062.0,94061.0,0.2125599]
[1745675582928,0.7858576,94062.0,94061.0,0.2135599]
[1745675586130,0.6178576,94062.0,94061.0,0.2135599]
[1745675586343,0.6178576,94062.0,94061.0,0.001]
[1745675586628,0.6178576,94062.0,94061.0,0.2135599]
[1745675587224,0.7858576,94062.0,94061.0,0.2135599]
[1745675588227,0.6178576,94062.0,94061.0,0.2135599]
[1745675591331,0.6178576,94062.0,94061.0,0.001]
[1745675592526,0.6178576,94062.0,94030.0,0.15711154]
[1745675592527,0.2126187,94040.0,94039.0,0.0531521]
[1745675592734,0.4826187,94040.0,94039.0,0.1187521]
[1745675593032,0.4826187,94040.0,94039.0,0.3844931]
[1745675593233,0.27,94040.0,94039.0,0.5524931]
[1745675593426,0.3998,94040.0,94039.0,0.5524931]
[1745675594632,0.3998,94040.0,94039.0,0.56058864]
[1745675594829,0.6124073,94040.0,94039.0,0.56158864]
[1745675596535,0.3998,94040.0,94039.0,0.56158864]
[1745675596741,0.6124073,94040.0,94039.0,0.56158864]
[1745675597939,0.3998,94040.0,94039.0,0.56158864]
[1745675598847,0.3998,94040.0,94039.0,0.56058864]
[1745675599034,0.4018,94040.0,94039.0,0.56158864]
[1745675600340,0.336,94040.0,94039.0,0.56158864]
[1745675601143,0.336,94040.0,94039.0,0.39358864]
[1745675603943,0.5486073,94040.0,94039.0,0.001]